bitfinex/quotes_BTCUSD_20251113
["timestamp","ask_amount","ask_price","bid_price","bid_amount"]
[1763050185125,0.01645031,101460.0,101450.0,1.40077128]
[1763050185349,0.0002,101470.0,101460.0,0.19712201]
[1763050185572,0.0002,101470.0,101460.0,0.99387311]
[1763050186004,2.22533756,101520.0,101510.0,0.19702492]
[1763050186225,0.07551414,101520.0,101510.0,0.23070492]
[1763050186438,0.27251965,101520.0,101510.0,0.03368]
[1763050186653,0.27251965,101520.0,101510.0,0.23070492]
[1763050186932,0.02718414,101520.0,101510.0,0.36801492]
[1763050187162,0.02718414,101520.0,101510.0,0.28989492]
[1763050187359,0.23418965,101520.0,101510.0,0.23548492]
[1763050187615,0.28567965,101520.0,101500.0,0.3136185]
[1763050187838,0.31490965,101520.0,101500.0,0.2354985]
[1763050188056,0.19702492,101510.0,101500.0,0.2354985]
[1763050188274,0.24861463,101510.0,101500.0,0.03846]
[1763050188497,0.24861463,101510.0,101500.0,0.23550433]
[1763050188755,0.29987463,101510.0,101490.0,0.28503693]
[1763050188970,0.29987463,101510.0,101490.0,0.32349693]
[1763050189192,0.24861463,101510.0,101500.0,0.19704433]
[1763050189420,0.22619463,101510.0,101500.0,0.25145433]
[1763050189657,0.23944492,101510.0,101500.0,0.19704433]
[1763050189888,0.19704433,101500.0,101490.0,0.64649693]
[1763050190103,0.23944492,101510.0,101500.0,0.323]
[1763050190581,0.23944492,101510.0,101500.0,0.52004433]
[1763050191257,0.23944492,101510.0,101490.0,0.32349693]
[1763050191483,0.23944492,101510.0,101480.0,0.03368]
[1763050191484,0.21706375,101490.0,101480.0,0.03368]
[1763050192115,0.21706375,101490.0,101480.0,0.23076316]
[1763050192547,0.21706375,101490.0,101480.0,0.08809]
[1763050192780,0.21706375,101490.0,101480.0,0.08909]
[1763050192999,0.26177456,101490.0,101480.0,0.03468]
[1763050193215,0.21706375,101490.0,101480.0,0.08909]
[1763050193461,0.22036375,101490.0,101480.0,0.001]
[1763050193903,0.29630375,101490.0,101480.0,0.001]
[1763050194357,0.22036375,101490.0,101480.0,0.001]
[1763050194583,0.29630375,101490.0,101480.0,0.002]
[1763050194790,2.29630375,101490.0,101480.0,0.002]
[1763050195005,2.93264549,101490.0,101480.0,0.002]
[1763050195220,2.62848399,101490.0,101480.0,0.002]
[1763050195439,3.26482573,101490.0,101480.0,0.002]
[1763050195898,2.62848399,101490.0,101480.0,0.001]
[1763050196127,0.21710259,101470.0,101460.0,0.20697657]
[1763050196385,0.21710259,101470.0,101460.0,0.19712201]
[1763050196594,0.02,101470.0,101460.0,0.25153201]
[1763050196827,0.02,101470.0,101460.0,0.32965201]
[1763050197000,0.24541316,101480.0,101470.0,0.19710259]
[1763050197144,0.24541316,101480.0,101470.0,0.23556259]
[1763050197357,0.24541316,101480.0,101470.0,0.28997259]
[1763050197560,0.25510105,101480.0,101470.0,0.03846]
[1763050197761,0.21710259,101470.0,101460.0,0.003]
[1763050197965,0.21786259,101470.0,101460.0,0.20012201]
[1763050198155,0.21811257,101470.0,101460.0,0.20012201]
[1763050198367,0.21811257,101470.0,101460.0,0.001]
[1763050198571,0.21735257,101470.0,101460.0,0.001]
[1763050199011,0.21735257,101470.0,101460.0,0.25253201]
[1763050199187,0.21735257,101470.0,101460.0,0.19712201]
[1763050199404,0.19712201,101460.0,101450.0,0.32357851]
[1763050199604,0.21712201,101460.0,101450.0,0.03846]
[1763050199808,0.21712201,101460.0,101450.0,0.23560144]
[1763050200213,0.21712201,101460.0,101440.0,0.43075262]
[1763050200214,0.19714144,101450.0,101440.0,0.07812]
[1763050200414,0.19714144,101450.0,101430.0,0.03846]
[1763050200415,0.19716088,101440.0,101430.0,0.03846]
[1763050200640,0.22116311,101440.0,101420.0,0.31551866]
[1763050200838,0.19718032,101430.0,101420.0,0.31551866]
[1763050201039,0.22256032,101430.0,101420.0,0.03995]
[1763050201284,0.25086032,101430.0,101420.0,0.03995]
[1763050201518,0.19719976,101420.0,101400.0,0.36295]
[1763050201728,0.04833,101410.0,101400.0,0.19723865]
[1763050201918,0.20705974,101420.0,101400.0,0.27560865]
[1763050202050,0.21705974,101420.0,101410.0,0.03995]
[1763050202258,0.21705974,101420.0,101410.0,0.2371692]
[1763050202461,0.1972192,101410.0,101390.0,0.32394964]
[1763050202711,0.19723865,101400.0,101390.0,0.03846]
[1763050202913,0.19723865,101400.0,101370.0,0.24701965]
[1763050202914,0.19725811,101390.0,101370.0,0.12038247]
[1763050203114,0.86188039,101400.0,101370.0,0.32544842]
[1763050203325,0.02,101390.0,101380.0,0.19727704]
[1763050203550,0.21725811,101390.0,101380.0,0.19727704]
[1763050203711,0.21725811,101390.0,101380.0,0.32888704]
[1763050203932,0.02,101390.0,101380.0,0.32888704]
[1763050204341,0.21725811,101390.0,101380.0,0.05324]
[1763050204542,0.21727756,101380.0,101370.0,0.03995]
[1763050204715,0.21727756,101380.0,101360.0,0.31895241]
[1763050204932,0.02,101380.0,101370.0,0.36885703]
[1763050205144,0.21727756,101380.0,101370.0,0.36885703]
[1763050205355,0.21727756,101380.0,101370.0,0.29048703]
[1763050205561,0.02,101380.0,101370.0,0.29048703]
[1763050205770,0.21727756,101380.0,101370.0,0.09319]
[1763050205973,0.21727756,101380.0,101370.0,0.03995]
[1763050206183,0.21727756,101380.0,101370.0,0.23724703]
[1763050206593,0.02,101380.0,101370.0,0.36922703]
[1763050206799,0.21727756,101380.0,101370.0,0.37022703]
[1763050207016,0.21727756,101380.0,101370.0,0.04095]
[1763050207423,0.9391593,101380.0,101370.0,0.001]
[1763050208044,0.21727756,101380.0,101370.0,0.04301]
[1763050208455,0.9391493,101380.0,101370.0,0.003]
[1763050208662,0.93819086,101380.0,101370.0,0.001]
[1763050208864,3.02800533,101380.0,101370.0,0.001]
[1763050209074,3.02800533,101380.0,101370.0,0.002]
[1763050209285,0.93819086,101380.0,101370.0,0.002]
[1763050209485,2.93819086,101380.0,101370.0,0.002]
[1763050209685,2.93819086,101380.0,101370.0,0.001]
[1763050209909,0.93819086,101380.0,101370.0,0.002]
[1763050210124,0.01904156,101380.0,101370.0,0.04101]
[1763050210335,0.20727756,101380.0,101370.0,0.23730703]
[1763050210539,0.20727756,101380.0,101370.0,0.17199]
[1763050210739,0.20727756,101380.0,101370.0,0.09362]
[1763050210945,0.20727756,101380.0,101370.0,0.04001]
[1763050211637,0.20727756,101380.0,101370.0,0.23730703]
[1763050211823,0.20727756,101380.0,101370.0,0.04001]
[1763050212034,0.20727756,101380.0,101370.0,0.23730703]
[1763050212530,0.20727756,101380.0,101370.0,0.04001]
[1763050212678,0.20727756,101380.0,101370.0,0.23730703]
[1763050213084,0.01,101380.0,101370.0,0.23730703]
[1763050213290,0.01,101380.0,101370.0,0.36928703]
[1763050213492,0.21629968,101390.0,101380.0,0.19727756]
[1763050213684,0.21629968,101390.0,101370.0,0.36928703]
[1763050213889,0.21629968,101390.0,101380.0,0.19727756]
[1763050214323,0.19727756,101380.0,101370.0,0.31567703]
[1763050214527,0.21629967,101390.0,101370.0,0.36928703]
[1763050214722,0.19727756,101380.0,101370.0,0.17199]
[1763050214943,0.21631912,101380.0,101370.0,0.04001]
[1763050215428,0.01904156,101370.0,101360.0,0.25050785]
[1763050215686,0.23912859,101370.0,101360.0,0.04332723]
[1763050215916,0.23912859,101370.0,101360.0,0.20063372]
[1763050216387,0.31913506,101370.0,101360.0,0.00331723]
[1763050216599,0.96281033,101370.0,101360.0,0.00331723]
[1763050217036,0.96281033,101370.0,101360.0,0.00431723]
[1763050217884,0.22006756,101380.0,101360.0,0.33261372]
[1763050217885,0.23910912,101380.0,101360.0,0.33261372]
[1763050218096,0.01904156,101370.0,101360.0,0.33261372]
[1763050219256,0.21633859,101370.0,101360.0,0.25424372]
[1763050219454,0.23912859,101370.0,101360.0,0.00331723]
[1763050219662,0.96281033,101370.0,101360.0,0.20063372]
[1763050219872,0.88727033,101370.0,101360.0,0.20063372]
[1763050220077,0.96281033,101370.0,101360.0,0.00331723]
[1763050220363,0.88727033,101370.0,101360.0,0.20063372]
[1763050220516,0.23912859,101370.0,101360.0,0.20063372]
[1763050221148,0.01904156,101370.0,101360.0,0.33261372]
[1763050221339,0.04183156,101380.0,101370.0,0.19729703]
[1763050221535,0.04183156,101380.0,101370.0,0.29091703]
[1763050221748,0.23910912,101380.0,101370.0,0.09362]
[1763050221964,0.19729703,101370.0,101360.0,0.24064372]
[1763050222171,0.95204033,101370.0,101360.0,0.00331723]
[1763050222376,0.87586033,101370.0,101360.0,0.20063372]
[1763050222808,0.23951859,101370.0,101360.0,0.20063372]
[1763050223011,0.23951859,101370.0,101360.0,0.00331723]
[1763050223427,0.31096664,101370.0,101360.0,0.00331723]
[1763050223644,1.02348838,101370.0,101360.0,0.00331723]
[1763050224690,0.38714664,101370.0,101360.0,0.00331723]
[1763050224901,1.02348838,101370.0,101360.0,0.00331723]
[1763050225109,0.95204033,101370.0,101360.0,0.00331723]
[1763050225533,0.04183156,101370.0,101360.0,0.20063372]
[1763050225740,0.01904156,101370.0,101360.0,0.33261372]
[1763050226150,0.95489266,101380.0,101370.0,0.19729703]
[1763050226151,0.21632138,101380.0,101370.0,0.19729703]
[1763050226357,0.24895257,101390.0,101380.0,0.19727756]
[1763050226589,0.25811168,101390.0,101370.0,0.31567703]
[1763050226773,0.21631912,101380.0,101370.0,0.23730703]
[1763050226979,0.21631912,101380.0,101370.0,0.19729703]
[1763050227183,0.21631912,101380.0,101370.0,0.23730703]
[1763050227393,0.21731912,101380.0,101370.0,0.23730703]
[1763050228003,0.19729703,101370.0,101360.0,0.28886954]
[1763050228214,0.19729703,101370.0,101360.0,0.27900372]
[1763050228415,0.21825703,101370.0,101360.0,0.20063372]
[1763050228621,0.23729859,101370.0,101360.0,0.20063372]
[1763050228820,0.04000156,101370.0,101360.0,0.20063372]
[1763050229159,0.2255414,101370.0,101360.0,0.33261372]
[1763050229580,0.2255414,101370.0,101360.0,0.25424372]
[1763050229774,0.2255414,101370.0,101360.0,0.05692723]
[1763050229974,0.2565114,101370.0,101360.0,0.00331723]
[1763050230182,0.05921437,101370.0,101360.0,0.20063372]
[1763050230414,0.2465014,101370.0,101360.0,0.20063372]
[1763050230764,0.26641549,101370.0,101360.0,0.00331723]
[1763050231007,0.2565114,101370.0,101360.0,0.00331723]
[1763050231234,0.86056384,101370.0,101360.0,0.00331723]
[1763050232329,0.2436398,101370.0,101360.0,0.32117372]
[1763050233398,0.2645998,101370.0,101360.0,0.00331723]
[1763050233609,0.86097384,101370.0,101360.0,0.00331723]
[1763050233814,0.82385384,101370.0,101360.0,0.00331723]
[1763050234033,0.3170298,101370.0,101360.0,0.00331723]
[1763050234249,0.2072232,101340.0,101310.0,0.18296762]
[1763050234466,0.72324667,101330.0,101310.0,0.31968416]
[1763050234686,0.19739439,101320.0,101310.0,0.03995]
[1763050234902,0.73326999,101320.0,101300.0,0.31681086]
[1763050235107,0.22644595,101320.0,101310.0,0.19741387]
[1763050235321,0.01904156,101310.0,101300.0,0.31869324]
[1763050235504,0.01904156,101310.0,101300.0,0.24624324]
[1763050235760,0.04183156,101310.0,101300.0,0.24552336]
[1763050235987,0.01,101320.0,101310.0,0.19739637]
[1763050236196,0.19739439,101320.0,101310.0,0.08706]
[1763050236407,0.19739439,101320.0,101310.0,0.28447387]
[1763050236836,0.19739439,101320.0,101310.0,0.08706]
[1763050237055,0.19741387,101310.0,101300.0,0.002]
[1763050237280,0.01904156,101310.0,101300.0,0.19943336]
[1763050237476,0.75664843,101320.0,101300.0,0.24552276]
[1763050237477,0.71421873,101320.0,101300.0,0.24552276]
[1763050237728,0.71421873,101320.0,101300.0,0.31797276]
[1763050237972,0.72326029,101320.0,101310.0,0.001]
[1763050238201,0.01904156,101320.0,101310.0,0.35792387]
[1763050238446,0.21643595,101320.0,101310.0,0.35792387]
[1763050238678,0.85786295,101320.0,101310.0,0.002]
[1763050238896,0.77568999,101320.0,101310.0,0.19941387]
[1763050239111,0.77568999,101320.0,101310.0,0.002]
[1763050239296,0.77568999,101320.0,101310.0,0.001]
[1763050240005,0.26886595,101320.0,101310.0,0.19841387]
[1763050240225,0.21643595,101320.0,101310.0,0.23738387]
[1763050240442,0.21643595,101320.0,101310.0,0.04097]
[1763050240672,0.77553999,101320.0,101310.0,0.20066644]
[1763050240892,0.21643595,101320.0,101310.0,0.00325257]
[1763050241551,0.21643595,101320.0,101310.0,0.05134257]
[1763050241789,0.24374559,101320.0,101310.0,0.00325257]
[1763050242003,0.83970963,101320.0,101310.0,0.00325257]
[1763050242216,0.76057963,101320.0,101310.0,0.00325257]
[1763050242447,0.83970963,101320.0,101310.0,0.00325257]
[1763050242664,0.25375559,101320.0,101310.0,0.00325257]
[1763050242876,0.76057963,101320.0,101310.0,0.00325257]
[1763050243134,0.83970963,101320.0,101310.0,0.00325257]
[1763050243563,0.76057963,101320.0,101310.0,0.00325257]
[1763050243775,0.76057963,101320.0,101310.0,0.20066644]
[1763050243997,0.56318524,101320.0,101310.0,0.20066644]
[1763050244222,0.25375559,101320.0,101310.0,0.20066644]
[1763050244434,0.24374559,101320.0,101310.0,0.20066644]
[1763050245322,0.25444559,101320.0,101310.0,0.20066644]
[1763050245543,0.24374559,101320.0,101310.0,0.20066644]
[1763050245763,0.25444559,101320.0,101310.0,0.00325257]
[1763050245980,0.93819299,101320.0,101310.0,0.00325257]
[1763050246215,0.83970963,101320.0,101310.0,0.00325257]
[1763050249533,0.22566111,101320.0,101310.0,0.23963644]
[1763050249752,0.82203515,101320.0,101310.0,0.00325257]
[1763050249964,0.82203515,101320.0,101310.0,0.20066644]
[1763050250190,0.31521111,101320.0,101310.0,0.20066644]
[1763050250411,0.82203515,101320.0,101310.0,0.00325257]
[1763050250686,0.87696563,101320.0,101310.0,0.00325257]
[1763050250903,0.37011928,101320.0,101310.0,0.00325257]
[1763050251118,3.40179956,101320.0,101310.0,0.00325257]
[1763050251561,2.89497552,101320.0,101310.0,0.00325257]
[1763050252006,2.89497552,101320.0,101310.0,0.00125257]
[1763050252432,3.40179956,101320.0,101310.0,0.00125257]
[1763050252879,3.72479956,101320.0,101310.0,0.00125257]
[1763050253093,3.21797552,101320.0,101310.0,0.00125257]
[1763050253308,3.72479956,101320.0,101310.0,0.00125257]
[1763050256031,3.72579956,101320.0,101310.0,0.00125257]
[1763050256498,3.04627947,101310.0,101300.0,0.5]
[1763050256707,3.35035703,101310.0,101300.0,0.5]
[1763050257331,3.33232483,101310.0,101300.0,0.5]
[1763050257458,3.35034618,101310.0,101300.0,0.5]
[1763050258300,3.35035349,101310.0,101300.0,0.5]
[1763050259139,3.25187013,101310.0,101300.0,0.5]
[1763050259354,3.23584147,101310.0,101300.0,0.5]
[1763050259783,3.23784147,101310.0,101300.0,0.5]
[1763050260816,3.25588903,101310.0,101300.0,0.5]
[1763050261235,3.23784147,101310.0,101300.0,0.5]
[1763050261346,0.63284828,101310.0,101300.0,0.5]
[1763050261558,0.22082543,101310.0,101300.0,0.5]
[1763050261759,0.02304156,101310.0,101300.0,0.74654336]
[1763050261967,0.02304156,101310.0,101300.0,0.81741336]
[1763050262169,0.22045543,101310.0,101300.0,0.6202306]
[1763050262370,0.21845543,101310.0,101300.0,0.81766396]
[1763050262579,0.21645543,101310.0,101300.0,0.81766396]
[1763050262782,0.21745543,101310.0,101300.0,0.69768396]
[1763050262978,0.21845543,101310.0,101300.0,0.74679396]
[1763050263202,0.21845543,101310.0,101300.0,0.81766396]
[1763050263412,0.21845543,101310.0,101300.0,0.6202306]
[1763050263616,0.91298283,101310.0,101300.0,0.5002506]
[1763050263823,3.02037667,101310.0,101300.0,0.5002506]
[1763050264054,3.01937667,101310.0,101300.0,0.5002506]
[1763050264256,3.34137667,101310.0,101300.0,0.5002506]
[1763050264696,3.35945304,101310.0,101300.0,0.5002506]
[1763050264935,2.852629,101310.0,101300.0,0.5002506]
[1763050265138,3.36145304,101310.0,101300.0,0.5002506]
[1763050267513,2.854629,101310.0,101300.0,0.5002506]
[1763050267726,3.36145304,101310.0,101300.0,0.5002506]
[1763050273049,2.854629,101310.0,101300.0,0.5002506]
[1763050273271,3.36145304,101310.0,101300.0,0.5002506]
[1763050274428,0.43314564,101310.0,101300.0,0.5002506]
[1763050274668,0.02930106,101310.0,101300.0,0.82116396]
[1763050274889,0.002,101310.0,101300.0,1.37140674]
[1763050275132,0.002,101310.0,101300.0,1.69440674]
[1763050275362,0.002,101310.0,101300.0,1.7228873]
[1763050275607,0.002,101310.0,101300.0,1.1875827]
[1763050276036,0.02788,101330.0,101320.0,0.19739439]
[1763050276309,0.74090717,101350.0,101330.0,0.19736458]
[1763050276529,0.01904156,101340.0,101330.0,0.35711491]
[1763050276746,0.24371491,101340.0,101330.0,0.35711491]
[1763050276964,0.04635948,101340.0,101330.0,0.35711491]
[1763050277176,0.02827191,101340.0,101330.0,0.35711491]
[1763050277648,0.01904156,101350.0,101340.0,0.19735543]
[1763050277866,0.01904156,101350.0,101340.0,0.32083543]
[1763050277867,0.04635626,101350.0,101340.0,0.32083543]
[1763050278303,0.00922617,101350.0,101340.0,0.32083543]
[1763050278524,0.01904156,101360.0,101350.0,0.19733596]
[1763050278742,0.04000156,101370.0,101360.0,0.19731649]
[1763050278956,0.04000156,101370.0,101360.0,0.24527649]
[1763050278957,0.08455415,101370.0,101360.0,0.24527649]
[1763050279173,0.28185118,101370.0,101360.0,0.24527649]
[1763050279405,0.30281118,101370.0,101360.0,0.24527649]
[1763050280482,0.85554522,101370.0,101350.0,0.30911596]
[1763050280703,0.30281118,101370.0,101360.0,0.19731649]
[1763050280922,0.10551415,101370.0,101360.0,0.24527649]
[1763050281135,0.02729934,101370.0,101360.0,0.32079649]
[1763050281403,0.04000156,101370.0,101360.0,0.19731649]
[1763050281607,0.23729859,101370.0,101360.0,0.19731649]
[1763050281799,0.26451859,101370.0,101360.0,0.19731649]
[1763050282077,0.26451859,101370.0,101360.0,0.32079649]
[1763050282078,0.01904156,101370.0,101360.0,0.32079649]
[1763050282521,0.01904156,101390.0,101380.0,0.19727756]
[1763050282739,0.21629967,101390.0,101380.0,0.04796]
[1763050282954,0.19727756,101380.0,101370.0,0.23353956]
[1763050283169,0.21631912,101380.0,101370.0,0.03626]
[1763050283601,0.01904156,101380.0,101370.0,0.28151703]
[1763050283813,0.01904156,101380.0,101370.0,0.35703703]
[1763050284105,0.21631912,101380.0,101370.0,0.03626]
[1763050284356,0.21631912,101380.0,101360.0,0.19731649]
[1763050284357,0.21633859,101370.0,101360.0,0.19731649]
[1763050284626,0.04000156,101370.0,101360.0,0.19731649]
[1763050284861,0.04000156,101370.0,101350.0,0.24346275]
[1763050284862,0.19731649,101360.0,101350.0,0.31898275]
[1763050285090,0.21635805,101360.0,101350.0,0.24346275]
[1763050285310,0.21635805,101360.0,101350.0,0.23359596]
[1763050285779,0.21635805,101360.0,101350.0,0.35707596]
[1763050285999,0.52778404,101370.0,101350.0,0.35707596]
[1763050286244,0.21731649,101360.0,101350.0,0.03626]
[1763050286464,0.21731649,101360.0,101350.0,0.23359596]
[1763050286685,0.02,101360.0,101350.0,0.23359596]
[1763050287118,0.21731649,101360.0,101350.0,0.08622]
[1763050287331,0.21731649,101360.0,101350.0,0.03826]
[1763050287557,0.21731649,101360.0,101350.0,0.23359596]
[1763050287778,0.21731649,101360.0,101350.0,0.23459596]
[1763050287994,0.90081389,101360.0,101350.0,0.002]
[1763050288213,0.21731649,101360.0,101350.0,0.03826]
[1763050288436,0.24453649,101360.0,101350.0,0.002]
[1763050288651,0.75136053,101360.0,101350.0,0.002]
[1763050288906,0.82233053,101360.0,101350.0,0.002]
[1763050289109,0.24453649,101360.0,101350.0,0.001]
[1763050289768,0.24453649,101360.0,101330.0,0.31902365]
[1763050289769,0.19734933,101350.0,101330.0,0.31902365]
[1763050289979,0.21735543,101340.0,101330.0,0.31902365]
[1763050290251,0.21735543,101340.0,101330.0,0.23363491]
[1763050290504,0.21737491,101330.0,101310.0,0.233598]
[1763050290711,0.02,101320.0,101310.0,0.233598]
[1763050290924,0.21739439,101320.0,101310.0,0.301798]
[1763050291141,0.02,101320.0,101310.0,0.348118]
[1763050291346,0.21739439,101320.0,101310.0,0.348118]
[1763050291801,0.21525491,101330.0,101310.0,0.34919387]
[1763050291802,0.03788,101330.0,101310.0,0.34919387]
[1763050292009,0.23525491,101330.0,101310.0,0.30187387]
[1763050292218,0.23525491,101330.0,101320.0,0.19739439]
[1763050292976,0.02,101330.0,101320.0,0.31191439]
[1763050293181,0.21735615,101340.0,101330.0,0.19737491]
[1763050293383,0.21735615,101340.0,101330.0,0.23111491]
[1763050293624,0.02,101340.0,101330.0,0.34563491]
[1763050293966,0.23266612,101350.0,101330.0,0.34563491]
[1763050293967,0.25266612,101350.0,101330.0,0.34563491]
[1763050294388,0.25266612,101350.0,101340.0,0.19735543]
[1763050294594,0.24278596,101350.0,101340.0,0.19735543]
[1763050295006,0.24278596,101350.0,101330.0,0.29931491]
[1763050295244,0.24278596,101350.0,101340.0,0.19735543]
[1763050295432,0.24378596,101350.0,101340.0,0.19735543]
[1763050295814,0.24278596,101350.0,101340.0,0.19735543]
[1763050296069,0.24278596,101350.0,101330.0,0.10194]
[1763050296070,0.19735543,101340.0,101330.0,0.10194]
[1763050296365,0.21808543,101340.0,101330.0,0.19737491]
[1763050296782,0.21735543,101340.0,101330.0,0.23111491]
[1763050297335,0.21735543,101340.0,101330.0,0.03374]
[1763050297579,0.19737491,101330.0,101320.0,0.19739439]
[1763050297827,0.86153262,101340.0,101320.0,0.26559439]
[1763050298022,0.21735543,101340.0,101330.0,0.27743491]
[1763050298315,0.21735543,101340.0,101330.0,0.03374]
[1763050298523,0.21735543,101340.0,101330.0,0.23111491]
[1763050298728,0.19737491,101330.0,101320.0,0.19839439]
[1763050298947,0.23525491,101330.0,101320.0,0.19839439]
[1763050299134,0.03788,101330.0,101320.0,0.24371439]
[1763050299359,0.23525491,101330.0,101320.0,0.31191439]
[1763050299565,0.21737491,101330.0,101320.0,0.31291439]
[1763050299776,0.02,101330.0,101320.0,0.31291439]
[1763050300149,0.21737491,101330.0,101320.0,0.31291439]
[1763050300363,0.02,101330.0,101320.0,0.31291439]
[1763050300543,0.21737491,101330.0,101320.0,0.31291439]
[1763050300922,0.02,101330.0,101320.0,0.31291439]
[1763050301147,0.02,101330.0,101320.0,0.31391439]
[1763050302318,0.21737491,101330.0,101320.0,0.31391439]
[1763050302530,0.23525491,101330.0,101320.0,0.31391439]
[1763050302736,0.21737491,101330.0,101320.0,0.31391439]
[1763050302920,0.25265275,101350.0,101330.0,0.19736059]
[1763050303274,0.25265275,101350.0,101330.0,0.03374]
[1763050303275,0.19735543,101340.0,101330.0,0.03374]
[1763050303702,0.19735543,101340.0,101330.0,0.08006]
[1763050303703,0.21735543,101340.0,101330.0,0.08006]
[1763050303926,0.19735543,101340.0,101330.0,0.08006]
[1763050304136,0.21735543,101340.0,101330.0,0.27743491]
[1763050304355,0.21735543,101340.0,101330.0,0.03374]
[1763050304356,0.22368543,101340.0,101330.0,0.03374]
[1763050304575,0.24368543,101340.0,101330.0,0.03374]
[1763050304773,0.19737491,101330.0,101320.0,0.3092041]
[1763050304983,0.24368543,101340.0,101320.0,0.3092041]
[1763050305199,0.19737491,101330.0,101320.0,0.3092041]
[1763050305622,0.21735543,101340.0,101330.0,0.19737491]
[1763050306459,0.21735543,101340.0,101320.0,0.3092041]
[1763050306664,0.21735543,101340.0,101320.0,0.3102041]
[1763050307282,0.19737491,101330.0,101320.0,0.3092041]
[1763050307695,0.19737491,101330.0,101320.0,0.14826]
[1763050307906,0.31502491,101330.0,101310.0,0.2869633]
[1763050308108,0.23525491,101330.0,101320.0,0.24371439]
[1763050308612,0.03788,101330.0,101320.0,0.24371439]
[1763050308809,0.02,101330.0,101320.0,0.31191439]
[1763050309253,0.19735654,101340.0,101330.0,0.19737491]
[1763050309461,0.25265275,101350.0,101340.0,0.19735543]
[1763050309708,0.26187425,101350.0,101340.0,0.24367543]
[1763050309919,0.0546715,101350.0,101340.0,0.24367543]
[1763050310162,0.21732325,101360.0,101350.0,0.19733596]
[1763050310362,0.24467593,101360.0,101350.0,0.23107596]
[1763050310565,0.33867571,101360.0,101350.0,0.03374]
[1763050310772,0.33867571,101360.0,101340.0,0.23109543]
[1763050310773,0.21833596,101350.0,101340.0,0.23109543]
[1763050310977,0.04545,101350.0,101340.0,0.27741543]
[1763050311195,0.21733596,101350.0,101340.0,0.08106]
[1763050311414,0.34255596,101350.0,101340.0,0.001]
[1763050311704,0.21735543,101340.0,101330.0,0.03374]
[1763050311924,0.02,101330.0,101320.0,0.20726395]
[1763050312140,0.01,101340.0,101330.0,0.19736499]
[1763050312360,0.23278702,101350.0,101330.0,0.34562499]
[1763050312578,0.23278702,101350.0,101340.0,0.31187543]
[1763050312795,0.19735543,101340.0,101330.0,0.29930499]
[1763050313000,0.21735543,101340.0,101330.0,0.03374]
[1763050313213,0.21735543,101340.0,101330.0,0.23111491]
[1763050313424,0.21735543,101340.0,101330.0,0.03374]
[1763050313635,0.19737491,101330.0,101320.0,0.0682]
[1763050313862,0.02,101330.0,101320.0,0.26559439]
[1763050314072,0.02,101330.0,101320.0,0.31191439]
[1763050314720,0.21735543,101340.0,101330.0,0.19737491]
[1763050314930,0.21735543,101340.0,101320.0,0.31191439]
[1763050314931,0.19737491,101330.0,101320.0,0.31191439]
[1763050315142,0.21525491,101330.0,101320.0,0.04732]
[1763050315354,0.23525491,101330.0,101320.0,0.24471439]
[1763050316015,0.21737491,101330.0,101320.0,0.31291439]
[1763050316231,0.21737491,101330.0,101320.0,0.31491439]
[1763050316873,0.22906491,101330.0,101320.0,0.24671439]
[1763050317293,0.26152491,101330.0,101320.0,0.003]
[1763050317505,0.26152491,101330.0,101320.0,0.20039439]
[1763050317711,0.26152491,101330.0,101320.0,0.003]
[1763050319220,0.22906491,101330.0,101320.0,0.24671439]
[1763050319413,0.26152491,101330.0,101320.0,0.20039439]
[1763050319614,0.22906491,101330.0,101320.0,0.24671439]
[1763050319841,0.03169,101330.0,101320.0,0.24671439]
[1763050320055,0.03169,101330.0,101320.0,0.31449439]
[1763050320260,0.03169,101330.0,101320.0,0.24671439]
[1763050320467,0.22906491,101330.0,101320.0,0.24671439]
[1763050321098,0.26152491,101330.0,101320.0,0.20039439]
[1763050321532,2.96475386,101330.0,101320.0,0.003]
[1763050321789,0.2383152,101330.0,101320.0,0.04764]
[1763050321993,0.22906491,101330.0,101320.0,0.24503439]
[1763050322200,0.26951491,101330.0,101320.0,0.04564]
[1763050322409,0.26951491,101330.0,101320.0,0.19839439]
[1763050322618,0.26951491,101330.0,101320.0,0.19939439]
[1763050322843,0.32276518,101330.0,101320.0,0.002]
[1763050323064,3.03499442,101330.0,101320.0,0.001]
[1763050323520,3.37615568,101330.0,101320.0,0.001]
[1763050323758,3.42957441,101330.0,101320.0,0.001]
[1763050323987,3.42957441,101330.0,101300.0,0.5002506]
[1763050323988,0.19741387,101310.0,101300.0,0.5002506]
[1763050324208,2.90586609,101310.0,101300.0,0.5002506]
[1763050324446,3.39103433,101310.0,101300.0,0.5002506]
[1763050325088,2.76340414,101310.0,101300.0,0.5002506]
[1763050325298,3.40200309,101310.0,101300.0,0.5002506]
[1763050325715,3.40100309,101310.0,101300.0,0.5002506]
[1763050326128,3.40300309,101310.0,101300.0,0.5002506]
[1763050326545,3.40400309,101310.0,101300.0,0.5002506]
[1763050326958,3.40300309,101310.0,101300.0,0.5002506]
[1763050327170,2.21745285,101290.0,101280.0,0.0004]
[1763050327374,3.03050642,101290.0,101280.0,0.0004]
[1763050327604,2.46086747,101290.0,101280.0,0.0004]
[1763050328016,2.36238411,101290.0,101280.0,0.0004]
[1763050328234,2.34422285,101290.0,101280.0,0.0004]
[1763050329085,2.9818218,101290.0,101280.0,0.0004]
[1763050331718,2.99993307,101290.0,101280.0,0.0004]
[1763050332622,3.32293307,101290.0,101280.0,0.0004]
[1763050332847,3.42141643,101290.0,101280.0,0.00090133]
[1763050333823,3.45208801,101290.0,101280.0,0.00090133]
[1763050334308,3.45108801,101290.0,101280.0,0.00090133]
[1763050334586,3.45208801,101290.0,101280.0,0.00090133]
[1763050335018,3.45108801,101290.0,101280.0,0.00090133]
[1763050335235,3.45108801,101290.0,101260.0,0.0004]
[1763050335236,2.8550908,101270.0,101260.0,0.0004]
[1763050335471,2.97970416,101270.0,101260.0,0.0004]
[1763050335698,3.44481844,101270.0,101260.0,1e-08]
[1763050335923,2.83689811,101270.0,101260.0,1e-08]
[1763050336364,3.47449706,101270.0,101260.0,1e-08]
[1763050337235,3.47549706,101270.0,101260.0,1e-08]
[1763050337455,3.68649705,101270.0,101260.0,1e-08]
[1763050337895,3.68549705,101270.0,101260.0,1e-08]
[1763050338355,3.68749705,101270.0,101260.0,1e-08]
[1763050338572,3.7604469,101270.0,101260.0,1e-08]
[1763050338999,3.7706482,101270.0,101260.0,1e-08]
[1763050339246,3.7676482,101270.0,101260.0,1e-08]
[1763050339476,3.13004925,101270.0,101260.0,1e-08]
[1763050339697,3.79745891,101270.0,101260.0,1e-08]
[1763050340364,2.95985996,101270.0,101260.0,1e-08]
[1763050340608,3.60145891,101270.0,101260.0,0.00100001]
[1763050340843,3.59225761,101270.0,101260.0,0.00150148]